[Event "Early Titled Tuesday Blitz | February 8 2022"]
[White "Quintiliano Pinto, Renato R."]
[Black "Indjic, Aleksandar"]
[WhiteFideId "2117568"]
[BlackFideId "911925"]
[WhiteElo "2439"]
[BlackElo "2616"]
[Result "0-1"]
[Round "09"]
[TimeControl "180+1"]
[Date "2022.02.08"]
[WhiteClock "0:00:14"]
[BlackClock "0:00:15"]

1. Nf3 {[%clk 0:03:00]}  d5 {[%clk 0:02:58]} 2. e3 {[%clk 0:03:00]}  Nf6 {[%clk 0:02:55]} 3. c4 {[%clk 0:03:00]}  c6 {[%clk 0:02:54]} 4. d4 {[%clk 0:02:59]}  Bg4 {[%clk 0:02:52]} 5. Qb3 {[%clk 0:02:57]}  Qb6 {[%clk 0:02:51]} 6. cxd5 {[%clk 0:02:47]}  Qxb3 {[%clk 0:02:47]} 7. axb3 {[%clk 0:02:47]}  Nxd5 {[%clk 0:02:46]} 8. Ne5 {[%clk 0:02:44]}  Bf5 {[%clk 0:02:45]} 9. Bd2 {[%clk 0:02:44]}  Nd7 {[%clk 0:02:38]} 10. Nxd7 {[%clk 0:02:35]}  Kxd7 {[%clk 0:02:35]} 11. Na3 {[%clk 0:02:36]}  f6 {[%clk 0:02:28]} 12. Nc4 {[%clk 0:02:33]}  e6 {[%clk 0:02:28]} 13. f3 {[%clk 0:02:34]}  Bg6 {[%clk 0:02:26]} 14. e4 {[%clk 0:02:23]}  Nc7 {[%clk 0:02:25]} 15. Na5 {[%clk 0:02:21]}  Kc8 {[%clk 0:02:24]} 16. Rc1 {[%clk 0:02:19]}  Bd6 {[%clk 0:02:16]} 17. b4 {[%clk 0:02:15]}  Kb8 {[%clk 0:02:01]} 18. Kf2 {[%clk 0:02:13]}  Rd8 {[%clk 0:01:58]} 19. Nb3 {[%clk 0:02:05]}  a6 {[%clk 0:01:57]} 20. Be2 {[%clk 0:02:00]}  f5 {[%clk 0:01:51]} 21. e5 {[%clk 0:01:52]}  Be7 {[%clk 0:01:50]} 22. Bc4 {[%clk 0:01:51]}  Bf7 {[%clk 0:01:40]} 23. Rhd1 {[%clk 0:01:50]}  Ka7 {[%clk 0:01:37]} 24. Bc3 {[%clk 0:01:35]}  Nd5 {[%clk 0:01:33]} 25. Nc5 {[%clk 0:01:34]}  Rac8 {[%clk 0:01:26]} 26. Be1 {[%clk 0:01:25]}  Nc7 {[%clk 0:01:19]} 27. Ra1 {[%clk 0:01:18]}  Kb8 {[%clk 0:01:18]} 28. Bc3 {[%clk 0:01:14]}  h5 {[%clk 0:01:13]} 29. f4 {[%clk 0:00:59]}  g5 {[%clk 0:01:11]} 30. fxg5 {[%clk 0:00:48]}  Bxg5 {[%clk 0:01:12]} 31. Rd3 {[%clk 0:00:48]}  h4 {[%clk 0:01:10]} 32. Bd2 {[%clk 0:00:41]}  Bxd2 {[%clk 0:01:08]} 33. Rxd2 {[%clk 0:00:42]}  Nd5 {[%clk 0:01:07]} 34. Bxd5 {[%clk 0:00:41]}  Rxd5 {[%clk 0:01:08]} 35. Ke3 {[%clk 0:00:40]}  Rg8 {[%clk 0:01:06]} 36. Rf1 {[%clk 0:00:40]}  b6 {[%clk 0:00:33]} 37. Nd3 {[%clk 0:00:35]}  Rb5 {[%clk 0:00:31]} 38. Rf4 {[%clk 0:00:31]}  Rh8 {[%clk 0:00:31]} 39. Rc2 {[%clk 0:00:30]}  Be8 {[%clk 0:00:30]} 40. Rc4 {[%clk 0:00:28]}  Kb7 {[%clk 0:00:30]} 41. Rf2 {[%clk 0:00:28]}  a5 {[%clk 0:00:29]} 42. bxa5 {[%clk 0:00:27]}  Rxa5 {[%clk 0:00:29]} 43. Nf4 {[%clk 0:00:25]}  Bd7 {[%clk 0:00:27]} 44. Rfc2 {[%clk 0:00:24]}  Ra1 {[%clk 0:00:25]} 45. R4c3 {[%clk 0:00:19]}  Rg8 {[%clk 0:00:22]} 46. Rb3 {[%clk 0:00:16]}  Re1+ {[%clk 0:00:19]} 47. Kf3 {[%clk 0:00:14]}  Re4 {[%clk 0:00:18]} 48. Nd3 {[%clk 0:00:12]}  Rxd4 {[%clk 0:00:16]} 49. Nc5+ {[%clk 0:00:12]}  Kc7 {[%clk 0:00:16]} 50. Nxd7 {[%clk 0:00:13]}  Rxd7 {[%clk 0:00:17]} 51. Rb4 {[%clk 0:00:13]}  c5 {[%clk 0:00:17]} 52. Rxh4 {[%clk 0:00:13]}  Rd5 {[%clk 0:00:16]} 53. Re2 {[%clk 0:00:14]}  Kc6 {[%clk 0:00:16]} 54. Rh6 {[%clk 0:00:14]}  Re8 {[%clk 0:00:16]} 55. Rf6 {[%clk 0:00:14]}  c4 {[%clk 0:00:17]} 56. h4 {[%clk 0:00:14]}  Kc5 {[%clk 0:00:17]} 57. h5 {[%clk 0:00:15]}  b5 {[%clk 0:00:17]} 58. h6 {[%clk 0:00:14]}  b4 {[%clk 0:00:18]} 59. Rf7 {[%clk 0:00:14]}  Rd3+ {[%clk 0:00:16]} 60. Kf4 {[%clk 0:00:14]}  Rg8 {[%clk 0:00:15]} 61. h7 {[%clk 0:00:14]}  Rg4# {[%clk 0:00:15]} 0-1


[Site "https://www.chess.com"]

[Event "Early Titled Tuesday Blitz | February 8 2022"]
[White "Redzisz, Michal"]
[Black "Gurevich, Dmitry"]
[WhiteFideId "21816107"]
[BlackFideId "2000407"]
[WhiteElo "1961"]
[BlackElo "2506"]
[Result "0-1"]
[Round "09"]
[TimeControl "180+1"]
[Date "2022.02.08"]
[WhiteClock "0:00:01"]
[BlackClock "0:00:08"]

1. Nf3 {[%clk 0:02:57]}  Nf6 {[%clk 0:02:59]} 2. b3 {[%clk 0:02:58]}  g6 {[%clk 0:02:56]} 3. Bb2 {[%clk 0:02:58]}  Bg7 {[%clk 0:02:57]} 4. g3 {[%clk 0:02:59]}  O-O {[%clk 0:02:57]} 5. Bg2 {[%clk 0:02:59]}  d6 {[%clk 0:02:57]} 6. O-O {[%clk 0:03:00]}  e5 {[%clk 0:02:57]} 7. d3 {[%clk 0:02:56]}  c5 {[%clk 0:02:55]} 8. Nbd2 {[%clk 0:02:56]}  Nc6 {[%clk 0:02:55]} 9. c4 {[%clk 0:02:55]}  Re8 {[%clk 0:02:53]} 10. a3 {[%clk 0:02:55]}  d5 {[%clk 0:02:52]} 11. cxd5 {[%clk 0:02:54]}  Nxd5 {[%clk 0:02:51]} 12. Rc1 {[%clk 0:02:54]}  e4 {[%clk 0:02:41]} 13. dxe4 {[%clk 0:02:33]}  Bxb2 {[%clk 0:02:39]} 14. Rc2 {[%clk 0:01:59]}  Nc3 {[%clk 0:02:35]} 15. Qe1 {[%clk 0:02:00]}  Bxa3 {[%clk 0:02:23]} 16. Rxc3 {[%clk 0:02:00]}  Bb4 {[%clk 0:02:23]} 17. Rd3 {[%clk 0:02:00]}  Qf6 {[%clk 0:02:07]} 18. Qc1 {[%clk 0:01:58]}  Be6 {[%clk 0:01:56]} 19. e5 {[%clk 0:01:37]}  Nxe5 {[%clk 0:01:51]} 20. Ne4 {[%clk 0:01:37]}  Nxf3+ {[%clk 0:01:48]} 21. Bxf3 {[%clk 0:01:37]}  Qe5 {[%clk 0:01:43]} 22. Nd6 {[%clk 0:01:33]}  Re7 {[%clk 0:01:23]} 23. Nxb7 {[%clk 0:01:16]}  Rf8 {[%clk 0:01:09]} 24. Nd8 {[%clk 0:01:14]}  Rc7 {[%clk 0:01:00]} 25. Nc6 {[%clk 0:00:58]}  Rxc6 {[%clk 0:00:50]} 26. Bxc6 {[%clk 0:00:59]}  Qxe2 {[%clk 0:00:47]} 27. Re3 {[%clk 0:00:59]}  Qa6 {[%clk 0:00:45]} 28. Bf3 {[%clk 0:00:51]}  h5 {[%clk 0:00:40]} 29. Be2 {[%clk 0:00:47]}  Qc6 {[%clk 0:00:33]} 30. Bf3 {[%clk 0:00:32]}  Qb6 {[%clk 0:00:26]} 31. Rd1 {[%clk 0:00:32]}  a5 {[%clk 0:00:23]} 32. Red3 {[%clk 0:00:23]}  Bf5 {[%clk 0:00:22]} 33. Rd6 {[%clk 0:00:22]}  Qc7 {[%clk 0:00:20]} 34. Qg5 {[%clk 0:00:14]}  Re8 {[%clk 0:00:15]} 35. Bxh5 {[%clk 0:00:09]}  Qe7 {[%clk 0:00:13]} 36. Qxe7 {[%clk 0:00:08]}  Rxe7 {[%clk 0:00:13]} 37. Bf3 {[%clk 0:00:07]}  Kg7 {[%clk 0:00:13]} 38. Rc6 {[%clk 0:00:03]}  Bc2 {[%clk 0:00:12]} 39. Rc1 {[%clk 0:00:01]}  Bxb3 {[%clk 0:00:12]} 40. R6xc5 {[%clk 0:00:01]}  Bxc5 {[%clk 0:00:12]} 41. Rxc5 {[%clk 0:00:02]}  Ra7 {[%clk 0:00:11]} 42. Rc1 {[%clk 0:00:01]}  a4 {[%clk 0:00:10]} 43. Ra1 {[%clk 0:00:02]}  a3 {[%clk 0:00:10]} 44. Bd1 {[%clk 0:00:01]}  Be6 {[%clk 0:00:08]} 0-1


[Site "https://www.chess.com"]

[Event "Early Titled Tuesday Blitz | February 8 2022"]
[White "Reprintsev, Alexander"]
[Black "Jaivardhan Raj"]
[WhiteFideId "14100541"]
[BlackFideId "25744437"]
[WhiteElo "2126"]
[BlackElo "1375"]
[Result "1-0"]
[Round "09"]
[TimeControl "180+1"]
[Date "2022.02.08"]
[WhiteClock "0:01:42"]
[BlackClock "0:00:36"]

1. e4 {[%clk 0:02:46]}  c5 {[%clk 0:02:59]} 2. b3 {[%clk 0:02:44]}  b6 {[%clk 0:02:57]} 3. d4 {[%clk 0:02:43]}  cxd4 {[%clk 0:02:57]} 4. Qxd4 {[%clk 0:02:44]}  Bb7 {[%clk 0:02:57]} 5. Bb2 {[%clk 0:02:43]}  e6 {[%clk 0:02:56]} 6. Nc3 {[%clk 0:02:40]}  Nf6 {[%clk 0:02:56]} 7. O-O-O {[%clk 0:02:39]}  Bc5 {[%clk 0:02:50]} 8. Qd2 {[%clk 0:02:39]}  Bb4 {[%clk 0:02:46]} 9. f3 {[%clk 0:02:37]}  O-O {[%clk 0:02:45]} 10. a3 {[%clk 0:02:36]}  Be7 {[%clk 0:02:38]} 11. e5 {[%clk 0:02:33]}  Nh5 {[%clk 0:02:30]} 12. Kb1 {[%clk 0:02:30]}  Nc6 {[%clk 0:02:21]} 13. Ne4 {[%clk 0:02:27]}  g6 {[%clk 0:02:06]} 14. Qxd7 {[%clk 0:02:23]}  Qxd7 {[%clk 0:02:03]} 15. Rxd7 {[%clk 0:02:23]}  Rab8 {[%clk 0:01:57]} 16. g4 {[%clk 0:02:18]}  Nf4 {[%clk 0:01:53]} 17. Ne2 {[%clk 0:02:15]}  Nxe2 {[%clk 0:01:42]} 18. Bxe2 {[%clk 0:02:11]}  Rfd8 {[%clk 0:01:42]} 19. Rhd1 {[%clk 0:02:09]}  Rxd7 {[%clk 0:01:40]} 20. Rxd7 {[%clk 0:02:04]}  Kf8 {[%clk 0:01:32]} 21. Nd6 {[%clk 0:02:01]}  Bxd6 {[%clk 0:01:15]} 22. exd6 {[%clk 0:01:55]}  Ke8 {[%clk 0:01:15]} 23. Rc7 {[%clk 0:01:54]}  Nd8 {[%clk 0:00:52]} 24. Bf6 {[%clk 0:01:50]}  Bc8 {[%clk 0:00:37]} 25. Bb5+ {[%clk 0:01:42]}  Kf8 {[%clk 0:00:36]} 26. Bxd8 {[%clk 0:01:42]} 1-0


[Site "https://www.chess.com"]

[Event "Early Titled Tuesday Blitz | February 8 2022"]
[White "Shevtchenko, Olesya"]
[Black "Shuvalov, Evgenij"]
[WhiteFideId "24131890"]
[BlackFideId "4187237"]
[WhiteElo "2003"]
[BlackElo "2119"]
[Result "0-1"]
[Round "09"]
[TimeControl "180+1"]
[Date "2022.02.08"]
[WhiteClock "0:00:14"]
[BlackClock "0:00:46"]

1. e4 {[%clk 0:03:00]}  e6 {[%clk 0:02:55]} 2. d4 {[%clk 0:02:59]}  d5 {[%clk 0:02:55]} 3. Nc3 {[%clk 0:02:59]}  Bb4 {[%clk 0:02:54]} 4. e5 {[%clk 0:02:58]}  c5 {[%clk 0:02:54]} 5. a3 {[%clk 0:02:59]}  Bxc3+ {[%clk 0:02:55]} 6. bxc3 {[%clk 0:03:00]}  Ne7 {[%clk 0:02:55]} 7. h4 {[%clk 0:02:58]}  Qc7 {[%clk 0:02:55]} 8. Rb1 {[%clk 0:02:58]}  Nbc6 {[%clk 0:02:50]} 9. h5 {[%clk 0:02:56]}  h6 {[%clk 0:02:49]} 10. Qg4 {[%clk 0:02:53]}  Bd7 {[%clk 0:02:34]} 11. Qxg7 {[%clk 0:02:46]}  Rg8 {[%clk 0:02:34]} 12. Qxh6 {[%clk 0:02:21]}  cxd4 {[%clk 0:02:34]} 13. Nf3 {[%clk 0:02:20]}  dxc3 {[%clk 0:02:31]} 14. Qf4 {[%clk 0:02:16]}  O-O-O {[%clk 0:02:27]} 15. Bd3 {[%clk 0:02:12]}  Rxg2 {[%clk 0:02:18]} 16. h6 {[%clk 0:02:07]}  Ng6 {[%clk 0:01:50]} 17. Bxg6 {[%clk 0:01:57]}  Rxg6 {[%clk 0:01:51]} 18. Qxf7 {[%clk 0:01:52]}  Nxe5 {[%clk 0:01:42]} 19. Nxe5 {[%clk 0:01:51]}  Qxe5+ {[%clk 0:01:42]} 20. Kf1 {[%clk 0:01:51]}  Qe4 {[%clk 0:01:32]} 21. Rh3 {[%clk 0:01:39]}  Qg2+ {[%clk 0:01:31]} 22. Ke2 {[%clk 0:01:36]}  e5 {[%clk 0:01:18]} 23. Rxc3+ {[%clk 0:01:33]}  Kb8 {[%clk 0:01:15]} 24. Rf3 {[%clk 0:00:28]}  Qg4 {[%clk 0:00:53]} 25. h7 {[%clk 0:00:23]}  e4 {[%clk 0:00:50]} 26. Qf4+ {[%clk 0:00:20]}  Ka8 {[%clk 0:00:49]} 27. Qc7 {[%clk 0:00:15]}  Qxf3+ {[%clk 0:00:46]} 28. Kd2 {[%clk 0:00:15]}  Qxf2+ {[%clk 0:00:45]} 29. Kc3 {[%clk 0:00:14]}  Rc6+ {[%clk 0:00:45]} 30. Qxc6 {[%clk 0:00:14]}  Bxc6 {[%clk 0:00:46]} 0-1


[Site "https://www.chess.com"]

[Event "Early Titled Tuesday Blitz | February 8 2022"]
[White "Shkapenko, Pavel"]
[Black "Silich, Yahor"]
[WhiteFideId "4151933"]
[BlackFideId "13513656"]
[WhiteElo "2386"]
[BlackElo "2101"]
[Result "1-0"]
[Round "09"]
[TimeControl "180+1"]
[Date "2022.02.08"]
[WhiteClock "0:00:48"]
[BlackClock "0:00:16"]

1. e4 {[%clk 0:02:53]}  c5 {[%clk 0:02:59]} 2. c3 {[%clk 0:02:53]}  d5 {[%clk 0:02:59]} 3. exd5 {[%clk 0:02:53]}  Qxd5 {[%clk 0:03:00]} 4. d4 {[%clk 0:02:54]}  e6 {[%clk 0:02:59]} 5. Nf3 {[%clk 0:02:53]}  Nf6 {[%clk 0:03:00]} 6. Be2 {[%clk 0:02:54]}  Be7 {[%clk 0:03:00]} 7. O-O {[%clk 0:02:54]}  Nc6 {[%clk 0:03:01]} 8. c4 {[%clk 0:02:55]}  Qd8 {[%clk 0:03:00]} 9. dxc5 {[%clk 0:02:55]}  O-O {[%clk 0:03:00]} 10. a3 {[%clk 0:02:50]}  a5 {[%clk 0:02:58]} 11. Be3 {[%clk 0:02:49]}  Ng4 {[%clk 0:02:58]} 12. Bf4 {[%clk 0:02:49]}  Bxc5 {[%clk 0:02:57]} 13. Nc3 {[%clk 0:02:50]}  Qe7 {[%clk 0:02:41]} 14. Ne4 {[%clk 0:02:44]}  Rd8 {[%clk 0:02:40]} 15. Qc2 {[%clk 0:02:26]}  Ba7 {[%clk 0:02:30]} 16. h3 {[%clk 0:02:18]}  Nf6 {[%clk 0:02:30]} 17. Bg5 {[%clk 0:02:17]}  Nd4 {[%clk 0:02:28]} 18. Nxd4 {[%clk 0:02:16]}  Bxd4 {[%clk 0:02:29]} 19. Rad1 {[%clk 0:02:08]}  b6 {[%clk 0:02:14]} 20. Nxf6+ {[%clk 0:02:02]}  Bxf6 {[%clk 0:02:13]} 21. Rxd8+ {[%clk 0:02:02]}  Qxd8 {[%clk 0:02:13]} 22. Rd1 {[%clk 0:02:03]}  Qe7 {[%clk 0:02:11]} 23. Bxf6 {[%clk 0:01:53]}  Qxf6 {[%clk 0:02:12]} 24. Qc3 {[%clk 0:01:53]}  Bb7 {[%clk 0:01:51]} 25. Qxf6 {[%clk 0:01:52]}  gxf6 {[%clk 0:01:52]} 26. Rd6 {[%clk 0:01:52]}  Kf8 {[%clk 0:01:40]} 27. Rxb6 {[%clk 0:01:51]}  Be4 {[%clk 0:01:41]} 28. c5 {[%clk 0:01:36]}  Ke7 {[%clk 0:01:37]} 29. f3 {[%clk 0:01:31]}  Bd5 {[%clk 0:01:37]} 30. Bd3 {[%clk 0:01:30]}  a4 {[%clk 0:01:28]} 31. Kf2 {[%clk 0:01:28]}  Rc8 {[%clk 0:01:24]} 32. Rb5 {[%clk 0:01:27]}  Bb3 {[%clk 0:01:20]} 33. Ke3 {[%clk 0:01:23]}  f5 {[%clk 0:01:17]} 34. g4 {[%clk 0:01:23]}  fxg4 {[%clk 0:01:11]} 35. hxg4 {[%clk 0:01:23]}  h6 {[%clk 0:01:08]} 36. Be4 {[%clk 0:01:23]}  Kf6 {[%clk 0:00:56]} 37. Kd4 {[%clk 0:01:07]}  Rd8+ {[%clk 0:00:52]} 38. Kc3 {[%clk 0:01:08]}  Rd1 {[%clk 0:00:42]} 39. c6 {[%clk 0:00:57]}  Rc1+ {[%clk 0:00:35]} 40. Kb4 {[%clk 0:00:58]}  Rc4+ {[%clk 0:00:25]} 41. Ka5 {[%clk 0:00:57]}  Ke7 {[%clk 0:00:25]} 42. Rb7+ {[%clk 0:00:52]}  Kd8 {[%clk 0:00:18]} 43. Rxf7 {[%clk 0:00:48]}  e5 {[%clk 0:00:16]} 44. Rh7 {[%clk 0:00:48]} 1-0


[Site "https://www.chess.com"]

[Event "Early Titled Tuesday Blitz | February 8 2022"]
[White "Shuvalova, Polina"]
[Black "Jakubowski, Krzysztof"]
[WhiteFideId "24171760"]
[BlackFideId "1112848"]
[WhiteElo "2355"]
[BlackElo "2365"]
[Result "1-0"]
[Round "09"]
[TimeControl "180+1"]
[Date "2022.02.08"]
[WhiteClock "0:00:10"]
[BlackClock "0:00:02"]

1. e4 {[%clk 0:02:29]}  c5 {[%clk 0:02:57]} 2. Nf3 {[%clk 0:02:29]}  e6 {[%clk 0:02:56]} 3. d4 {[%clk 0:02:27]}  cxd4 {[%clk 0:02:55]} 4. Nxd4 {[%clk 0:02:28]}  Nc6 {[%clk 0:02:54]} 5. Nc3 {[%clk 0:02:29]}  Qc7 {[%clk 0:02:54]} 6. g3 {[%clk 0:02:18]}  a6 {[%clk 0:02:51]} 7. Bg2 {[%clk 0:02:18]}  d6 {[%clk 0:02:49]} 8. O-O {[%clk 0:02:17]}  Bd7 {[%clk 0:02:48]} 9. Be3 {[%clk 0:02:17]}  Nf6 {[%clk 0:02:45]} 10. Qe2 {[%clk 0:02:12]}  Be7 {[%clk 0:02:42]} 11. Rad1 {[%clk 0:02:13]}  b5 {[%clk 0:02:27]} 12. Nxc6 {[%clk 0:02:12]}  Bxc6 {[%clk 0:02:26]} 13. Bd4 {[%clk 0:02:11]}  O-O {[%clk 0:02:24]} 14. a3 {[%clk 0:02:11]}  Qb7 {[%clk 0:02:17]} 15. Rfe1 {[%clk 0:02:10]}  Rac8 {[%clk 0:02:12]} 16. Bxf6 {[%clk 0:01:44]}  gxf6 {[%clk 0:01:57]} 17. Nd5 {[%clk 0:01:38]}  Kh8 {[%clk 0:01:24]} 18. Nxe7 {[%clk 0:01:32]}  Qxe7 {[%clk 0:01:25]} 19. Rd3 {[%clk 0:01:32]}  Rfd8 {[%clk 0:01:23]} 20. Red1 {[%clk 0:01:32]}  Rd7 {[%clk 0:01:23]} 21. Rc3 {[%clk 0:01:31]}  Qd8 {[%clk 0:01:17]} 22. Qe3 {[%clk 0:01:24]}  Bb7 {[%clk 0:01:15]} 23. Rxc8 {[%clk 0:01:21]}  Bxc8 {[%clk 0:01:16]} 24. Rd3 {[%clk 0:01:18]}  Kg7 {[%clk 0:01:13]} 25. h4 {[%clk 0:01:15]}  Bb7 {[%clk 0:01:13]} 26. Qd4 {[%clk 0:01:14]}  Qc7 {[%clk 0:01:07]} 27. Rc3 {[%clk 0:01:12]}  Qd8 {[%clk 0:01:06]} 28. Rf3 {[%clk 0:01:10]}  h6 {[%clk 0:01:05]} 29. Rd3 {[%clk 0:01:07]}  Kf8 {[%clk 0:00:51]} 30. Qe3 {[%clk 0:01:06]}  Kg7 {[%clk 0:00:51]} 31. Qd4 {[%clk 0:01:06]}  Kf8 {[%clk 0:00:50]} 32. a4 {[%clk 0:01:05]}  bxa4 {[%clk 0:00:49]} 33. Qxa4 {[%clk 0:01:05]}  Kg7 {[%clk 0:00:48]} 34. Qd4 {[%clk 0:01:05]}  d5 {[%clk 0:00:47]} 35. e5 {[%clk 0:01:05]}  f5 {[%clk 0:00:47]} 36. Rb3 {[%clk 0:00:58]}  Qc8 {[%clk 0:00:42]} 37. c3 {[%clk 0:00:57]}  Rc7 {[%clk 0:00:42]} 38. Bf1 {[%clk 0:00:53]}  Bc6 {[%clk 0:00:31]} 39. Rb4 {[%clk 0:00:46]}  a5 {[%clk 0:00:26]} 40. Rb6 {[%clk 0:00:45]}  Bd7 {[%clk 0:00:24]} 41. Ba6 {[%clk 0:00:35]}  Qa8 {[%clk 0:00:20]} 42. Bf1 {[%clk 0:00:34]}  a4 {[%clk 0:00:20]} 43. Qb4 {[%clk 0:00:34]}  Qd8 {[%clk 0:00:18]} 44. Rd6 {[%clk 0:00:33]}  Qc8 {[%clk 0:00:16]} 45. Qb6 {[%clk 0:00:32]}  Be8 {[%clk 0:00:16]} 46. Qd4 {[%clk 0:00:24]}  Rb7 {[%clk 0:00:13]} 47. Ba6 {[%clk 0:00:24]}  Qb8 {[%clk 0:00:07]} 48. Bxb7 {[%clk 0:00:24]}  Qxb7 {[%clk 0:00:08]} 49. Qb6 {[%clk 0:00:24]}  Qc8 {[%clk 0:00:08]} 50. Qd8 {[%clk 0:00:23]}  Qc4 {[%clk 0:00:03]} 51. Qf6+ {[%clk 0:00:23]}  Kh7 {[%clk 0:00:02]} 52. Rd8 {[%clk 0:00:23]}  Qb5 {[%clk 0:00:02]} 53. Qe7 {[%clk 0:00:21]}  a3 {[%clk 0:00:02]} 54. Qxa3 {[%clk 0:00:18]}  Qe2 {[%clk 0:00:01]} 55. Rxe8 {[%clk 0:00:18]}  Qe1+ {[%clk 0:00:02]} 56. Kg2 {[%clk 0:00:18]}  Qe4+ {[%clk 0:00:02]} 57. Kh2 {[%clk 0:00:18]}  f4 {[%clk 0:00:01]} 58. Qc5 {[%clk 0:00:10]}  fxg3+ {[%clk 0:00:01]} 59. Kxg3 {[%clk 0:00:10]}  Qg6+ {[%clk 0:00:02]} 60. Kf3 {[%clk 0:00:10]}  Qe4+ {[%clk 0:00:02]} 61. Kg3 {[%clk 0:00:10]}  Qg6+ {[%clk 0:00:03]} 62. Kh2 {[%clk 0:00:10]}  Qg4 {[%clk 0:00:02]} 63. Qd4 {[%clk 0:00:10]} 1-0


[Site "https://www.chess.com"]

[Event "Early Titled Tuesday Blitz | February 8 2022"]
[White "Stankovic, Ivan G"]
[Black "Petesch, Gabriel"]
[WhiteFideId "902837"]
[BlackFideId "2032465"]
[WhiteElo "2195"]
[BlackElo "2374"]
[Result "0-1"]
[Round "09"]
[TimeControl "180+1"]
[Date "2022.02.08"]
[WhiteClock "0:00:12"]
[BlackClock "0:00:04"]

1. e4 {[%clk 0:02:56]}  c6 {[%clk 0:03:00]} 2. d3 {[%clk 0:02:56]}  d5 {[%clk 0:03:00]} 3. Nd2 {[%clk 0:02:56]}  Nf6 {[%clk 0:02:59]} 4. Ngf3 {[%clk 0:02:54]}  g6 {[%clk 0:02:59]} 5. g3 {[%clk 0:02:53]}  Bg7 {[%clk 0:02:59]} 6. Bg2 {[%clk 0:02:54]}  O-O {[%clk 0:02:59]} 7. O-O {[%clk 0:02:54]}  Nbd7 {[%clk 0:02:58]} 8. Re1 {[%clk 0:02:48]}  e5 {[%clk 0:02:55]} 9. c3 {[%clk 0:02:38]}  Re8 {[%clk 0:02:49]} 10. Qc2 {[%clk 0:02:38]}  Qc7 {[%clk 0:02:45]} 11. Nf1 {[%clk 0:02:36]}  dxe4 {[%clk 0:02:38]} 12. dxe4 {[%clk 0:02:37]}  Nf8 {[%clk 0:02:35]} 13. Ne3 {[%clk 0:02:21]}  Be6 {[%clk 0:02:29]} 14. b3 {[%clk 0:02:19]}  a5 {[%clk 0:02:26]} 15. Ba3 {[%clk 0:02:08]}  a4 {[%clk 0:02:25]} 16. Ng5 {[%clk 0:02:06]}  Qb6 {[%clk 0:02:07]} 17. Nxe6 {[%clk 0:02:03]}  Nxe6 {[%clk 0:02:08]} 18. Nc4 {[%clk 0:02:02]}  Qa6 {[%clk 0:01:58]} 19. Nxe5 {[%clk 0:01:52]}  Qa5 {[%clk 0:01:42]} 20. Nc4 {[%clk 0:01:51]}  Qh5 {[%clk 0:01:26]} 21. Qe2 {[%clk 0:01:45]}  Qh6 {[%clk 0:01:15]} 22. Nd6 {[%clk 0:01:37]}  Reb8 {[%clk 0:01:01]} 23. Bc1 {[%clk 0:01:34]}  Qh5 {[%clk 0:00:55]} 24. Bf3 {[%clk 0:01:24]}  Qe5 {[%clk 0:00:47]} 25. Nc4 {[%clk 0:01:15]}  Qc7 {[%clk 0:00:37]} 26. Bd2 {[%clk 0:00:54]}  Nd7 {[%clk 0:00:34]} 27. Bg4 {[%clk 0:00:48]}  b5 {[%clk 0:00:28]} 28. Bxe6 {[%clk 0:00:47]}  fxe6 {[%clk 0:00:27]} 29. Ne3 {[%clk 0:00:44]}  Rf8 {[%clk 0:00:21]} 30. Rab1 {[%clk 0:00:29]}  axb3 {[%clk 0:00:13]} 31. axb3 {[%clk 0:00:30]}  Ra2 {[%clk 0:00:12]} 32. Ra1 {[%clk 0:00:30]}  Rb2 {[%clk 0:00:04]} 33. Reb1 {[%clk 0:00:26]}  Bxc3 {[%clk 0:00:04]} 34. Rxb2 {[%clk 0:00:25]}  Bxb2 {[%clk 0:00:05]} 35. Rd1 {[%clk 0:00:17]}  Bd4 {[%clk 0:00:04]} 36. Bb4 {[%clk 0:00:16]}  c5 {[%clk 0:00:04]} 37. Qxb5 {[%clk 0:00:14]}  Rb8 {[%clk 0:00:04]} 38. Qd3 {[%clk 0:00:13]}  Rxb4 {[%clk 0:00:03]} 39. Nc2 {[%clk 0:00:13]}  Ne5 {[%clk 0:00:03]} 40. Qd2 {[%clk 0:00:12]}  Nf3+ {[%clk 0:00:03]} 41. Kg2 {[%clk 0:00:12]}  Nxd2 {[%clk 0:00:04]} 42. Rxd2 {[%clk 0:00:12]}  Rxb3 {[%clk 0:00:04]} 0-1


[Site "https://www.chess.com"]

[Event "Early Titled Tuesday Blitz | February 8 2022"]
[White "Stefanov, Plamen"]
[Black "Berezin, Viktor"]
[WhiteFideId "2900980"]
[BlackFideId "14107872"]
[WhiteElo "2137"]
[BlackElo "2310"]
[Result "1-0"]
[Round "09"]
[TimeControl "180+1"]
[Date "2022.02.08"]
[WhiteClock "0:01:15"]
[BlackClock "0:00:03"]

1. e4 {[%clk 0:03:00]}  d5 {[%clk 0:02:56]} 2. exd5 {[%clk 0:03:00]}  Nf6 {[%clk 0:02:48]} 3. Nc3 {[%clk 0:02:59]}  g6 {[%clk 0:02:47]} 4. Bc4 {[%clk 0:03:00]}  Bg7 {[%clk 0:02:39]} 5. Nf3 {[%clk 0:02:54]}  O-O {[%clk 0:02:37]} 6. O-O {[%clk 0:02:54]}  a6 {[%clk 0:02:24]} 7. Bb3 {[%clk 0:02:47]}  b5 {[%clk 0:02:15]} 8. Re1 {[%clk 0:02:44]}  Bb7 {[%clk 0:02:08]} 9. Qe2 {[%clk 0:02:39]}  Re8 {[%clk 0:01:50]} 10. Ng5 {[%clk 0:02:29]}  Nxd5 {[%clk 0:01:47]} 11. Nxf7 {[%clk 0:02:22]}  Qd7 {[%clk 0:01:30]} 12. Nxd5 {[%clk 0:02:15]}  Bxd5 {[%clk 0:01:14]} 13. Ne5 {[%clk 0:01:57]}  Qd6 {[%clk 0:01:12]} 14. d4 {[%clk 0:01:47]}  e6 {[%clk 0:01:01]} 15. c3 {[%clk 0:01:44]}  c5 {[%clk 0:00:53]} 16. dxc5 {[%clk 0:01:38]}  Qxc5 {[%clk 0:00:51]} 17. Be3 {[%clk 0:01:37]}  Qe7 {[%clk 0:00:41]} 18. Bd4 {[%clk 0:01:37]}  Nd7 {[%clk 0:00:36]} 19. Nxg6 {[%clk 0:01:32]}  Qf7 {[%clk 0:00:26]} 20. Ne5 {[%clk 0:01:24]}  Nxe5 {[%clk 0:00:17]} 21. Bxe5 {[%clk 0:01:24]}  Bxb3 {[%clk 0:00:17]} 22. axb3 {[%clk 0:01:24]}  Qg6 {[%clk 0:00:14]} 23. Bxg7 {[%clk 0:01:20]}  Qxg7 {[%clk 0:00:15]} 24. Qe5 {[%clk 0:01:19]}  Qg6 {[%clk 0:00:10]} 25. Re3 {[%clk 0:01:17]}  Kf7 {[%clk 0:00:03]} 26. Rf3+ {[%clk 0:01:15]}  Ke7 {[%clk 0:00:03]} 27. Qc7# {[%clk 0:01:15]} 1-0


[Site "https://www.chess.com"]

[Event "Early Titled Tuesday Blitz | February 8 2022"]
[White "Tay, Junior"]
[Black "Goldin, Roman"]
[WhiteFideId "5800439"]
[BlackFideId "2803860"]
[WhiteElo "2216"]
[BlackElo "2312"]
[Result "1-0"]
[Round "09"]
[TimeControl "180+1"]
[Date "2022.02.08"]
[WhiteClock "0:00:48"]
[BlackClock "0:00:46"]

1. Nc3 {[%clk 0:02:54]}  e5 {[%clk 0:02:59]} 2. e4 {[%clk 0:02:53]}  Nf6 {[%clk 0:02:57]} 3. f4 {[%clk 0:02:53]}  d5 {[%clk 0:02:54]} 4. fxe5 {[%clk 0:02:52]}  Nxe4 {[%clk 0:02:54]} 5. Nf3 {[%clk 0:02:53]}  Bg4 {[%clk 0:02:43]} 6. d4 {[%clk 0:02:48]}  Bb4 {[%clk 0:02:33]} 7. Bd2 {[%clk 0:02:46]}  Bxc3 {[%clk 0:02:31]} 8. bxc3 {[%clk 0:02:45]}  Nc6 {[%clk 0:02:29]} 9. Bd3 {[%clk 0:02:45]}  O-O {[%clk 0:02:26]} 10. O-O {[%clk 0:02:42]}  f6 {[%clk 0:02:22]} 11. exf6 {[%clk 0:02:36]}  Qxf6 {[%clk 0:02:19]} 12. h3 {[%clk 0:02:25]}  Bh5 {[%clk 0:02:17]} 13. g4 {[%clk 0:02:20]}  Bg6 {[%clk 0:02:16]} 14. Ng5 {[%clk 0:02:05]}  Qd6 {[%clk 0:02:09]} 15. Nxe4 {[%clk 0:01:56]}  dxe4 {[%clk 0:02:06]} 16. Bc4+ {[%clk 0:01:54]}  Kh8 {[%clk 0:02:05]} 17. Qe2 {[%clk 0:01:45]}  Ne7 {[%clk 0:01:19]} 18. Rxf8+ {[%clk 0:01:37]}  Rxf8 {[%clk 0:01:13]} 19. Rf1 {[%clk 0:01:33]}  Rf6 {[%clk 0:01:08]} 20. Rxf6 {[%clk 0:01:10]}  gxf6 {[%clk 0:01:03]} 21. Qf2 {[%clk 0:01:01]}  Kg7 {[%clk 0:01:02]} 22. Qf4 {[%clk 0:00:52]}  Qa3 {[%clk 0:00:48]} 23. Qh6+ {[%clk 0:00:49]}  Kh8 {[%clk 0:00:46]} 24. Qf8+ {[%clk 0:00:48]} 1-0


[Site "https://www.chess.com"]